bitfinex/quotes_ETHUSD_20260213
["timestamp","ask_amount","ask_price","bid_price","bid_amount"]
[1770994906161,1.25363554,1994.2,1993.5,0.001]
[1770994906332,0.1024,1994.1,1993.5,0.001]
[1770994906834,0.1024,1994.1,1993.1,0.001]
[1770994906835,0.6259022,1994.1,1993.1,0.001]
[1770994907028,2.188,1994.0,1993.1,0.001]
[1770994908172,1.25344697,1994.5,1993.2,11.081463]
[1770994908375,2.15632569,1994.7,1993.4,0.54399061]
[1770994908555,0.903,1994.7,1993.4,0.54399061]
[1770994908859,0.903,1994.7,1993.7,16.743097]
[1770994909065,0.00153886,1995.0,1993.9,0.54399061]
[1770994909227,0.00153886,1995.0,1994.2,2.82933]
[1770994909428,0.00153886,1995.0,1994.2,4.445716]
[1770994909656,0.00153886,1995.0,1994.2,1.121]
[1770994909842,0.903,1995.4,1994.2,1.66499061]
[1770994910160,0.903,1995.4,1994.4,1.25350982]
[1770994910365,0.002,1995.8,1994.6,0.54399061]
[1770994910563,0.002,1995.8,1994.7,7.12441961]
[1770994910767,0.002,1995.8,1994.9,19.48228161]
[1770994910941,0.002,1995.9,1995.0,0.54399061]
[1770994911141,0.515,1996.4,1995.0,0.54399061]
[1770994911342,0.515,1996.4,1995.2,20.634181]
[1770994911542,1.76726083,1996.4,1995.3,5.83633]
[1770994911748,0.515,1996.4,1995.3,11.969132]
[1770994911973,0.515,1996.4,1995.4,15.748731]
[1770994912175,0.515,1996.4,1995.5,1.25281884]
[1770994912472,0.002,1996.8,1995.5,1.79680945]
[1770994912661,0.002,1996.8,1995.6,12.181569]
[1770994912856,0.002,1996.8,1995.7,16.594664]
[1770994913058,0.002,1996.8,1995.8,1.121]
[1770994913260,0.002,1996.8,1995.7,8.997002]
[1770994913459,1.25401676,1996.8,1995.7,1.121]
[1770994913659,0.002,1996.8,1995.7,1.121]
[1770994913865,0.00153886,1997.0,1996.0,12.557237]
[1770994914056,1.25342626,1997.0,1996.0,4.39633]
[1770994914256,0.00153886,1998.0,1996.3,0.54399061]
[1770994914464,0.00153886,1998.0,1996.5,4.31533]
[1770994914665,1.25280723,1998.0,1996.5,4.31533]
[1770994914972,0.00153886,1998.0,1996.8,0.18685624]
[1770994915273,0.002,1998.4,1997.2,21.81547]
[1770994915586,1.25301963,1998.4,1997.3,1.121]
[1770994915738,0.002,1998.4,1997.3,1.121]
[1770994915942,0.002,1998.4,1997.1,0.54399061]
[1770994915943,1.25300177,1998.4,1997.1,0.54399061]
[1770994916143,1.25300177,1998.4,1997.3,1.25168978]
[1770994916366,1.25300177,1998.4,1997.1,5.00722017]
[1770994916570,1.28,1998.3,1997.0,1.25338556]
[1770994918274,1.25112601,1998.2,1997.0,0.00153886]
[1770994919182,2.53108691,1998.3,1997.0,0.00153886]
[1770994920482,3.05458911,1998.3,1997.0,0.00153886]
[1770994920674,2.53108691,1998.3,1997.0,0.00153886]
[1770994921394,2.53106775,1998.3,1997.0,0.00153886]
[1770994921611,1.28,1998.3,1997.0,0.48837771]
[1770994921890,2.53106441,1998.3,1997.1,7.731226]
[1770994922099,2.53106441,1998.3,1997.0,0.48837771]
[1770994922100,2.53106441,1998.3,1997.0,0.00153886]
[1770994922269,1.28,1998.3,1997.1,1.119]
[1770994922454,2.53106551,1998.3,1997.1,1.119]
[1770994922781,0.002,1998.4,1997.2,8.017495]
[1770994922982,0.002,1998.2,1997.2,6.141628]
[1770994923174,0.002,1998.4,1997.3,0.48683885]
[1770994923360,2.764477,1999.2,1998.2,0.48883885]
[1770994923564,0.002,1999.3,1998.2,0.48683885]
[1770994923755,1.25244324,1999.3,1998.1,7.720229]
[1770994924097,0.002,1999.1,1998.2,2.87533]
[1770994924292,0.002,1999.1,1998.2,1.25112601]
[1770994924712,1.2500625,1999.9,1998.4,0.48683885]
[1770994924854,1.25154082,2000.0,1998.7,24.587388]
[1770994925178,1.25154082,2000.0,1998.7,1.119]
[1770994925563,0.1024,1999.9,1998.2,1.25112601]
[1770994925898,0.62772342,1999.9,1998.2,2.37012601]
[1770994926596,1.25012501,1999.8,1998.2,2.37012601]
[1770994926803,2.52812501,1999.8,1998.4,0.18685624]
[1770994926984,2.52812501,1999.8,1998.3,0.48683885]
[1770994927291,1.278,1999.8,1998.6,8.839002]
[1770994927584,1.278,1999.8,1998.3,9.968896]
[1770994927787,1.278,1999.8,1998.6,1.118]
[1770994928369,1.278,1999.8,1998.7,1.118]
[1770994928565,0.00153886,2000.0,1998.8,1.25075045]
[1770994928776,1.25154256,2000.0,1998.9,12.680552]
[1770994928982,1.25154256,2000.0,1998.8,1.7375893]
[1770994929282,1.25154256,2000.0,1998.8,2.36975045]
[1770994929476,1.25154256,2000.0,1998.4,0.18685624]
[1770994929477,1.3794,1999.9,1998.4,5.00398664]
[1770994929668,1.90472342,1999.9,1998.3,5.00407603]
[1770994929852,0.62772342,1999.9,1998.3,5.00407603]
[1770994930056,1.277,1999.8,1998.3,5.00407603]
[1770994930286,1.277,1999.8,1998.4,0.48683885]
[1770994930454,1.25018752,1999.7,1998.6,1.25087561]
[1770994930862,1.25018752,1999.7,1998.1,5.00462112]
[1770994931086,1.77551094,1999.7,1998.1,5.00462112]
[1770994931392,1.77551094,1999.7,1998.1,6.12362112]
[1770994931686,1.25018752,1999.7,1998.1,6.12362112]
[1770994932081,1.25018752,1999.7,1998.2,16.638296]
[1770994932281,0.902,1999.9,1998.6,0.48683885]
[1770994932491,2.15207504,1999.9,1998.8,5.00275151]
[1770994932656,2.15207504,1999.9,1998.8,2.36975045]
[1770994932657,1.25007504,1999.9,1998.8,2.36975045]
[1770994932988,1.25154775,2000.0,1998.8,2.36975045]
[1770994933202,1.25154124,2000.0,1998.8,2.36975045]
[1770994933358,0.00153886,2000.0,1998.8,2.36975045]
[1770994933559,0.00153886,2000.0,1999.0,16.48106]
[1770994934003,1.25155599,2000.0,1999.1,1.119]
[1770994934573,0.00153886,2000.0,1998.8,1.119]
[1770994934774,0.52686228,2000.0,1998.6,6.1220018]
[1770994934988,0.00153886,2000.0,1998.6,6.1220018]
[1770994935302,0.00153886,2000.0,1998.6,2.36987561]
[1770994935510,0.52532342,1999.8,1998.4,1.2510008]
[1770994935806,0.00153886,2000.0,1998.5,0.48683885]
[1770994935969,0.002,1999.8,1998.6,10.233757]
[1770994936165,0.002,1999.8,1998.6,1.119]
[1770994936570,0.002,1999.8,1998.7,1.25081302]
[1770994937568,0.002,1999.8,1998.5,5.00363908]
[1770994938279,0.002,1999.8,1998.6,17.38043085]
[1770994938482,0.002,1999.8,1998.5,5.00363908]
[1770994938687,0.002,1999.8,1998.6,8.07576385]
[1770994939024,0.002,1999.8,1998.6,0.48683885]
[1770994939415,0.002,1999.8,1998.5,1.2509382]
[1770994939613,0.52732342,1999.8,1998.4,2.36997922]
[1770994940837,0.52532342,1999.6,1998.3,0.001]
[1770994941010,0.52532342,1999.4,1998.3,0.001]
[1770994941430,0.62772342,1999.3,1998.3,0.001]
[1770994941803,0.52532342,1998.8,1998.0,0.00153886]
[1770994942008,2.168,1998.7,1998.0,0.00153886]
[1770994942343,0.52532342,1999.3,1998.0,1.25276895]
[1770994942559,0.52532342,1999.3,1998.0,0.00153886]
[1770994942705,1.77582362,1999.2,1998.0,0.00153886]
[1770994943728,0.52532342,1999.1,1998.0,0.00153886]
[1770994944756,1.77594873,1999.0,1998.0,0.00153886]
[1770994945344,1.25062531,1999.0,1998.0,0.00153886]
[1770994945571,7.69532422,1999.4,1998.0,0.00153886]
[1770994945572,1.25018752,1999.7,1998.1,4.51975185]
[1770994945713,0.002,1999.8,1998.7,17.136161]
[1770994946055,1.25212708,1999.8,1998.8,1.116]
[1770994946713,0.002,1999.8,1998.9,1.25068787]
[1770994948040,0.002,1999.8,1998.2,9.92419227]
[1770994948210,0.002,1999.8,1998.3,3.693235]
[1770994948416,0.903,1999.8,1998.2,2.3670634]
[1770994948746,1.25018752,1999.7,1998.2,2.3670634]
[1770994948967,0.52532342,1999.4,1998.1,0.901]
[1770994949127,0.52532342,1999.2,1998.0,0.00153886]
[1770994949332,1.25018752,1999.7,1998.1,0.48683885]
[1770994949517,1.25018752,1999.7,1998.3,9.92419227]
[1770994949821,1.25018752,1999.7,1998.4,1.115]
[1770994950018,1.25018752,1999.7,1998.3,0.901]
[1770994950019,0.002,1999.2,1998.1,0.48783885]
[1770994950231,0.002,1999.2,1998.2,2.403367]
[1770994950551,0.002,1999.3,1998.5,24.587388]
[1770994950724,0.002,1999.3,1998.6,1.25087561]
[1770994950924,0.002,1999.3,1998.6,2.36587561]
[1770994951126,0.002,1999.8,1998.7,17.019248]
[1770994951442,0.002,1999.8,1998.7,1.116]
[1770994951641,0.002,1999.8,1998.1,0.001]
[1770994951642,0.50938158,1999.8,1998.1,0.001]
[1770994951951,0.50738158,1999.6,1998.1,1.25218537]
[1770994953049,0.50738158,1999.4,1998.1,0.001]
[1770994953215,1.25031257,1999.5,1998.1,0.001]
[1770994953216,2.67338158,1999.3,1998.1,0.001]
[1770994953860,0.002,1999.8,1998.3,0.46878264]
[1770994954021,0.002,1999.8,1998.4,6.16292424]
[1770994954217,0.002,1999.8,1998.6,0.46878264]
[1770994954441,0.002,1999.8,1998.8,0.46878264]
[1770994954748,0.00153886,2000.0,1999.1,19.38706764]
[1770994954949,0.901,2000.7,1999.1,19.38706764]
[1770994954950,0.901,2000.7,1999.3,8.577388]
[1770994955251,2.1505696,2000.7,1999.4,1.25037511]
[1770994956050,2.15056773,2000.7,1999.4,1.25037511]
[1770994956434,0.901,2000.7,1999.4,2.36737511]
[1770994956631,2.01513911,2001.0,1999.6,0.50135537]
[1770994956632,0.24275753,2001.0,1999.6,0.50135537]
[1770994956836,0.24275753,2001.0,1999.8,24.587388]
[1770994957036,0.24275753,2001.0,2000.0,1.25]
[1770994957237,1.24900079,2001.6,2000.0,1.25]
[1770994957456,0.4986569,2001.5,2000.0,1.25]
[1770994958132,0.4986569,2001.5,1999.9,1.117]
[1770994958333,0.4986569,2001.3,1999.8,6.11744357]
[1770994958526,0.4986569,2001.3,1999.8,1.25012501]
[1770994958726,0.4986569,2001.3,1999.5,2.36731257]
[1770994959173,1.24925044,2001.2,1999.6,24.04868737]
[1770994959327,1.24925044,2001.2,1999.7,5.114223]
[1770994959666,1.74790734,2001.2,1999.6,4.918983]
[1770994959967,1.74790734,2001.2,1999.6,3.356553]
[1770994960136,1.24925044,2001.2,1999.6,3.85790837]
[1770994960337,1.24925044,2001.2,1999.2,5.18810655]
[1770994960338,27.547399,2001.1,1999.2,1.2505002]
[1770994960663,27.547399,2001.1,1999.0,0.90253886]
[1770994960664,0.4986569,2000.8,1999.0,0.90253886]
[1770994960861,0.4986569,2000.6,1999.0,1.2521383]
[1770994961063,0.4986569,2000.6,1999.0,0.00153886]
[1770994961240,0.4986569,2000.4,1999.0,0.00153886]
[1770994961558,2.163,2000.3,1999.0,0.00153886]
[1770994961767,0.4986569,2000.4,1999.0,0.00153886]
[1770994961964,2.163,2000.3,1999.0,0.00153886]
[1770994963154,2.163,2000.3,1999.3,0.001]
[1770994963665,3.41282363,2000.3,1999.3,0.001]
[1770994963834,3.41282207,2000.3,1999.3,0.001]
[1770994964033,3.41281416,2000.3,1999.3,0.001]
[1770994964866,2.163,2000.3,1999.3,0.001]
[1770994965164,2.51056265,2000.7,1999.3,0.001]
[1770994965468,2.51057961,2000.7,1999.3,1.25143765]
[1770994965664,2.51057039,2000.7,1999.4,21.501979]
[1770994965867,2.51056435,2000.7,1999.4,13.019399]
[1770994966067,0.002,2000.8,1999.6,24.587388]
[1770994966266,0.901,2001.3,1999.8,0.50135537]
[1770994966562,1.24905905,2001.6,2000.1,16.667199]
[1770994966764,1.24905905,2001.6,2000.1,15.194199]
[1770994966968,4.99557397,2001.8,2000.1,15.194199]
[1770994967144,0.4986569,2001.7,1999.5,0.85393193]
[1770994967344,1.24900079,2001.6,1999.8,5.453959]
[1770994967559,0.4986569,2001.4,1999.7,1.25018752]
[1770994967869,0.901,2001.3,1999.7,1.25018752]
[1770994968038,2.50900079,2001.6,1999.9,0.50135537]
[1770994968244,2.50900079,2001.6,2000.0,6.713528]
[1770994968464,2.50900079,2001.6,1999.9,0.50135537]
[1770994968658,2.50900079,2001.6,2000.0,1.115]
[1770994969248,3.00765769,2001.6,1999.8,2.382035]
[1770994969538,3.00765769,2001.6,1999.9,1.115]
[1770994969739,2.50900079,2001.6,1999.9,1.115]
[1770994970048,0.4986569,2001.5,1999.8,1.114]
[1770994970356,0.4986569,2001.5,1999.8,1.61535537]
[1770994970538,2.50900079,2001.6,1999.9,19.78169837]
[1770994970745,4.99527887,2001.9,2000.1,0.50135537]
[1770994971063,0.4986569,2002.3,2000.4,25.08874337]
[1770994971368,1.74734577,2002.1,2000.6,1.24962511]
[1770994971872,1.259,2002.5,2000.7,0.50135537]
[1770994972073,1.24850179,2002.4,2000.8,0.50135537]
[1770994973252,1.24850179,2002.4,2000.7,2.66623437]
[1770994973452,1.24850179,2002.4,2000.8,1.75085556]
[1770994973655,1.24850179,2002.4,2000.9,0.50135537]
[1770994973956,1.24850179,2002.4,2000.8,1.24950019]
[1770994974770,1.24850179,2002.4,2000.8,1.75085556]
[1770994975172,4.99344844,2002.7,2001.1,17.43088337]
[1770994975378,1.74697167,2002.7,2000.8,5.49885661]
[1770994975583,1.74697167,2002.7,2000.9,10.094007]
[1770994975793,1.74697167,2002.7,2001.1,6.057886]
[1770994975953,1.74697167,2002.7,2000.8,1.112]
[1770994976293,1.74697167,2002.7,2001.0,12.74290237]
[1770994976454,1.24831477,2002.7,2001.0,0.50135537]
[1770994976653,1.24831477,2002.7,2000.9,0.001]
[1770994976654,0.002,2001.9,2001.2,0.50135537]
[1770994977369,0.002,2001.9,2001.3,1.24918802]
[1770994978898,0.002,2001.9,2001.3,2.36118802]
[1770994980086,0.002,2001.9,2001.0,1.24933947]
[1770994980287,0.002,2001.9,2000.9,0.001]
[1770994980288,0.5006569,2001.9,2000.9,0.001]
[1770994980594,0.002,2001.9,2000.9,1.25042789]
[1770994981158,0.002,2001.9,2000.9,2.36342789]
[1770994981797,1.24855002,2002.4,2001.0,23.618408]
[1770994981961,1.24855002,2002.4,2001.0,0.49485725]
[1770994982157,2.1484048,2002.6,2001.0,0.49485725]
[1770994982500,0.9,2002.6,2001.2,0.49485725]
[1770994982806,0.1314266,2002.8,2001.0,1.24937531]
[1770994982807,9.92419227,2002.3,2001.0,1.24937531]
[1770994982955,0.49760583,2002.4,2001.1,0.49485725]
[1770994982956,0.9,2002.4,2001.1,0.49485725]
[1770994983366,4.521499,2002.1,2001.1,0.49485725]
[1770994983566,5.77023735,2002.1,2001.2,1.24925044]
[1770994983982,4.521499,2002.1,2001.3,0.49485725]
[1770994984197,5.77009258,2002.3,2001.5,0.49485725]
[1770994984404,1.24859358,2002.3,2001.5,0.49485725]
[1770994984609,1.24859358,2002.3,2001.4,1.113]
[1770994984964,4.521499,2001.9,2001.4,1.113]
[1770994985399,4.521499,2002.0,2001.4,1.113]
[1770994985701,6.2452566,2002.6,2001.4,1.113]
[1770994985702,1.99515782,2003.4,2001.5,1.2490632]
[1770994985868,6.24465635,2002.7,2001.5,1.2490632]
[1770994986281,6.24465635,2002.7,2001.5,1.74392045]
[1770994986986,4.99365635,2002.7,2001.6,0.49485725]
[1770994987787,4.99365635,2002.7,2001.4,2.36207491]
[1770994987992,4.99365635,2002.7,2001.4,2.85693216]
[1770994988999,1.06692367,2002.6,2001.4,1.113]
[1770994989211,1.06692367,2002.5,2001.4,1.113]
[1770994989369,4.99365635,2002.7,2001.2,1.2492057]
[1770994989370,5.49126218,2002.7,2001.2,1.2492057]
[1770994989678,2.96445,2002.1,2000.9,0.001]
[1770994990025,0.49760583,2001.6,1999.3,0.901]
[1770994990322,0.49760583,2001.6,1999.8,0.001]
[1770994990323,2.816,2001.2,1999.8,0.001]
[1770994990480,4.04668,2001.0,1999.8,0.001]
[1770994990678,1.56472935,2000.9,1999.8,0.001]
[1770994990879,1.06712352,2000.8,1999.8,0.001]
[1770994991295,2.152,2000.7,1999.8,0.001]
[1770994991491,1.06712352,2000.6,1999.8,0.001]
[1770994991668,1.24968757,2000.5,1999.8,0.001]
[1770994991867,1.06712352,2000.4,1999.8,0.001]
[1770994992071,4.99834334,2000.7,1999.8,0.001]
[1770994992298,6.25034334,2000.7,1999.8,0.001]
[1770994992502,1.06860822,2000.6,1999.8,0.001]
[1770994992706,1.06860822,2000.5,1999.8,0.001]
[1770994992874,6.25034334,2000.7,1999.8,0.001]
[1770994993071,1.06873089,2000.6,1999.8,0.001]
[1770994993275,1.06873089,2000.5,1999.8,0.001]
[1770994993607,1.252,2000.5,1999.8,0.001]
[1770994993806,1.24975004,2000.4,1999.8,0.001]
[1770994993994,4.99756857,2001.0,1999.8,0.001]
[1770994994195,4.47014887,2000.9,1999.8,0.001]
[1770994994497,5.81135183,2000.7,1999.8,0.001]
[1770994994696,3.22071112,2000.6,1999.8,0.001]
[1770994994883,2.32071112,2000.5,1999.8,0.001]
[1770994995086,1.06871112,2000.4,1999.8,0.001]
[1770994995296,1.252,2000.3,1999.8,0.001]
[1770994995806,1.24987501,2000.2,1999.8,0.001]
[1770994995997,1.24987501,2000.2,1999.3,0.001]
[1770994997008,1.24950019,2000.8,1999.5,0.49485725]
[1770994997778,4.99800079,2000.9,1999.6,1.25025005]
[1770994998211,4.99800079,2000.9,1999.7,0.49485725]
[1770994998401,4.99800079,2000.9,1999.6,1.25025005]
[1770994998602,1.0669608,2000.8,1999.4,2.36034583]
[1770994998802,1.06705997,2000.7,1999.5,0.49485725]
[1770994999016,4.99800079,2000.9,1999.5,0.49485725]
[1770994999212,1.06682987,2000.8,1999.4,2.36034583]
[1770994999375,1.06682987,2000.7,1999.4,2.36034583]
[1770994999581,2.153,2000.8,1999.4,2.85520308]
[1770994999781,1.24956265,2000.7,1999.4,2.85520308]
[1770994999976,1.24956265,2000.7,1999.4,1.25034583]
[1770995000610,1.24956265,2000.7,1999.3,0.001]
[1770995000814,1.06627905,2000.6,1999.3,0.001]
[1770995001017,1.06627905,2000.5,1999.3,0.001]
[1770995001314,1.06627905,2000.4,1999.3,0.001]
[1770995001515,1.252,2000.3,1999.3,0.001]
[1770995001722,1.74960583,2000.3,1999.3,0.001]
[1770995001921,1.2499375,2000.1,1999.0,0.00153886]
[1770995002212,0.1024,1999.9,1999.8,0.001]
[1770995002391,1.1681385,1999.9,1999.0,0.00153886]
[1770995002594,2.31683053,1999.8,1999.0,0.00153886]
[1770995002798,1.252,1999.8,1999.0,0.00153886]
[1770995003118,0.1024,1999.6,1998.9,0.001]
[1770995003282,0.1024,1999.4,1998.1,0.001]
[1770995003485,0.1024,1999.2,1998.1,0.001]
[1770995003684,1.06420526,1999.1,1998.1,0.001]
[1770995003886,28.98538953,1999.0,1998.1,0.001]
[1770995004088,10.49526644,1999.0,1998.1,0.001]
[1770995004301,10.49526644,1999.0,1997.5,2.15255886]
[1770995004584,0.1024,1998.8,1997.5,0.901]
[1770995004891,1.253,1998.7,1997.5,2.15256359]
[1770995005097,0.901,1998.6,1997.4,0.001]
[1770995005317,0.1024,1998.8,1997.4,1.25262069]
[1770995005619,0.1024,1998.8,1997.5,0.49485725]
[1770995005620,1.253,1998.7,1997.5,0.49485725]
[1770995005817,1.25087561,1998.6,1997.4,0.001]
[1770995006892,1.25085546,1998.7,1997.4,0.49585725]
[1770995007086,2.50485546,1998.7,1997.4,0.49585725]
[1770995007906,2.50485546,1998.7,1997.4,1.74747109]
[1770995008417,2.50485546,1998.7,1997.4,0.49585725]
[1770995008591,2.50485546,1998.7,1997.4,1.7474788]
[1770995008914,2.50485546,1998.7,1997.5,0.49485725]
[1770995009525,0.00153886,1999.0,1997.6,0.49485725]
[1770995009819,1.25220487,1999.0,1997.6,1.74631107]
[1770995010415,1.25220487,1999.0,1997.6,1.74635211]
[1770995010919,14.899227,1998.9,1997.4,3.2596008]
[1770995011219,4.478902,1998.9,1997.4,3.74593146]
[1770995011522,1.25220487,1999.0,1997.5,0.48633066]
[1770995011708,2.156,1998.9,1997.5,0.48633066]
[1770995011925,1.25075045,1998.8,1997.6,1.2515018]
[1770995012487,1.25075045,1998.8,1997.5,0.48633066]
[1770995012693,14.042117,1998.7,1997.4,2.008]
[1770995012920,14.042117,1998.7,1997.4,0.902]
[1770995013128,0.1024,1998.7,1997.4,0.001]
[1770995013808,0.1024,1998.5,1997.4,0.001]
[1770995014009,2.5060008,1998.4,1997.4,0.001]
[1770995014550,0.1024,1998.3,1997.4,0.001]
[1770995014839,0.1024,1997.8,1997.0,0.00153886]
[1770995015000,1.256,1997.7,1997.0,0.00153886]
[1770995015202,1.75288298,1998.4,1997.0,0.00153886]
[1770995015418,14.29651,1998.1,1997.0,0.00153886]
[1770995016014,4.209629,1997.8,1997.0,0.00153886]
[1770995016218,0.1024,1997.9,1997.0,0.00153886]
[1770995016426,1.257,1997.8,1997.0,0.00153886]
[1770995018038,1.25143915,1997.7,1997.0,0.00153886]
[1770995018356,1.25143915,1997.7,1996.6,0.001]
[1770995018357,3.598371,1997.6,1996.6,0.001]
[1770995018720,22.293268,1997.4,1996.6,0.001]
[1770995018907,14.072657,1997.1,1996.0,0.00153886]
[1770995019109,0.1024,1997.2,1996.0,0.00153886]
[1770995019509,30.0,1996.9,1996.0,0.00153886]
[1770995019750,2.204124,1996.4,1995.3,0.001]
[1770995020056,1.25237952,1996.2,1995.3,0.001]
[1770995020418,2.50935475,1996.3,1995.3,0.001]
[1770995020637,5.0091454,1997.0,1995.3,0.52921051]
[1770995020930,0.1024,1996.7,1995.3,0.52921051]
[1770995021105,0.902,1996.8,1995.3,0.52921051]
[1770995021737,5.00826363,1996.9,1995.3,0.52921051]
[1770995021936,1.258,1996.7,1995.3,0.52921051]
[1770995022137,1.25212861,1996.6,1995.4,1.25288162]
[1770995022443,1.25212861,1996.6,1995.3,5.54073702]
[1770995022444,26.482291,1996.5,1995.3,0.001]
[1770995022741,0.1024,1996.3,1995.3,0.001]
[1770995022911,1.257,1996.2,1995.3,0.001]
[1770995023846,0.1024,1995.7,1995.0,0.00153886]
[1770995024066,0.1024,1995.7,1994.4,0.24823877]
[1770995024067,2.16,1995.6,1994.4,0.24823877]
[1770995024382,3.41281884,1995.5,1994.4,1.5017386]
[1770995024510,13.167126,1995.4,1994.4,0.24823877]
[1770995024711,0.1024,1995.4,1994.4,0.24823877]
[1770995024912,1.258,1995.3,1994.4,1.50173755]
[1770995025721,1.25281884,1995.5,1994.4,1.50173755]
[1770995025927,1.258,1995.3,1994.4,0.24823877]
[1770995026152,2.5109923,1995.3,1994.4,1.50174567]
[1770995026374,0.902,1995.6,1994.5,0.52821051]
[1770995026666,2.51056776,1995.9,1994.7,0.52821051]
[1770995027161,2.51204708,1996.0,1994.7,0.52821051]
[1770995027826,1.25953886,1996.0,1994.7,0.52821051]
[1770995028025,2.51207688,1996.0,1994.7,0.52821051]
[1770995028244,1.25953886,1996.0,1994.9,0.52821051]
[1770995028444,0.00153886,1996.0,1994.9,0.52821051]
[1770995028879,0.514,1996.5,1995.1,0.52821051]
[1770995029058,0.514,1996.6,1995.2,0.52821051]
[1770995029754,0.1024,1996.5,1995.2,0.52821051]
[1770995030164,1.25225405,1996.4,1995.4,0.52821051]
[1770995030355,6.26562909,1996.6,1995.4,0.52821051]
[1770995030563,1.25217074,1996.6,1995.4,0.52821051]
[1770995031355,26.673378,1996.5,1995.1,1.25306358]
[1770995031571,1.25217074,1996.6,1995.0,0.00153886]
[1770995031572,0.1024,1996.3,1995.0,0.00153886]
[1770995031919,0.1024,1996.1,1995.0,0.00153886]
[1770995032082,2.161,1996.2,1994.0,0.00153886]
[1770995032083,0.49254617,1995.7,1994.0,0.00153886]
[1770995032279,0.49254617,1995.7,1993.6,0.52921051]
[1770995032280,1.35540721,1995.2,1993.7,0.52821051]
[1770995032465,0.1024,1995.0,1993.7,0.52821051]
[1770995032666,0.00153886,1995.0,1993.7,0.52821051]
[1770995034245,1.25467169,1995.0,1993.9,0.52821051]
[1770995034449,0.00153886,1995.0,1993.9,0.52821051]
[1770995035282,0.00153886,1995.0,1994.1,0.52821051]
[1770995036287,0.00153886,1995.0,1994.2,1.25363554]
[1770995036455,0.00153886,1995.0,1994.1,0.52821051]
[1770995036648,0.00153886,1995.0,1993.8,5.01541533]
[1770995036649,0.00153886,1995.0,1993.9,0.52821051]
[1770995037368,0.00153886,1995.0,1993.7,1.25390056]
[1770995037696,28.44287802,1994.9,1993.6,0.001]
[1770995037857,0.1024,1994.5,1993.6,0.001]
[1770995038198,1.06392824,1994.4,1993.6,0.001]
[1770995038392,0.1024,1994.2,1993.6,0.001]
[1770995038756,1.25357268,1994.3,1993.6,0.001]
[1770995038955,2.50957268,1994.3,1993.6,0.001]
[1770995039176,2.50957268,1994.3,1993.2,0.001]
[1770995039954,0.1024,1994.2,1993.2,0.001]
[1770995040488,2.51069841,1994.1,1993.2,0.52921051]
[1770995040797,2.51069841,1994.1,1993.2,0.001]
[1770995041360,0.1024,1994.0,1993.2,0.001]
[1770995041695,0.1024,1994.0,1993.3,0.001]
[1770995042185,2.51069841,1994.1,1993.3,0.001]
[1770995042186,1.25369841,1994.1,1993.3,0.001]
[1770995042408,1.257,1994.1,1993.2,0.001]
[1770995043273,1.257,1994.1,1993.2,0.47996808]
[1770995043480,1.25357268,1994.3,1993.2,0.47996808]
[1770995043685,2.51057268,1994.3,1993.2,0.47996808]
[1770995044107,1.25357268,1994.3,1993.2,0.47996808]
[1770995044606,1.25357268,1994.3,1993.3,0.47896808]
[1770995044806,1.25319564,1994.9,1993.3,0.47896808]
[1770995045019,1.257,1994.7,1993.3,0.47896808]
[1770995045574,2.51019564,1994.9,1993.5,0.47896808]
[1770995046167,0.1024,1994.6,1993.2,1.25526433]
[1770995046390,0.1024,1994.3,1993.2,0.001]
[1770995046701,0.1024,1994.1,1993.2,0.001]
[1770995046902,1.25350982,1994.4,1993.2,0.47996808]
[1770995047088,1.3594,1994.3,1993.2,0.47996808]
[1770995047288,1.3594,1994.3,1993.2,0.001]
[1770995047495,1.25350982,1994.4,1993.2,0.47996808]
[1770995048092,1.257,1994.4,1993.2,0.47996808]
[1770995048405,1.25853886,1995.0,1993.4,0.47896808]
[1770995048607,1.25853886,1995.0,1994.0,0.47896808]
[1770995048608,0.00153886,1995.0,1994.0,0.47896808]
[1770995048911,1.25607347,1996.0,1994.5,0.47896808]
[1770995049077,1.25607347,1996.0,1994.7,0.47896808]
[1770995049473,0.00353886,1996.0,1994.7,0.47896808]
[1770995049668,0.00353886,1996.0,1995.3,0.47896808]
[1770995050269,1.25605068,1996.0,1995.3,0.47896808]
[1770995050472,0.00353886,1996.0,1995.3,1.73189052]
[1770995050886,0.00353886,1996.0,1994.9,7.00677767]
[1770995050887,0.00353886,1996.0,1994.7,1.38196808]
[1770995051119,1.06973092,1995.9,1994.7,1.38196808]
[1770995051301,0.00353886,1996.0,1994.7,1.38196808]
[1770995051612,0.1024,1995.8,1994.3,2.47296808]
[1770995051786,2.32617437,1995.7,1994.3,2.47296808]
[1770995052110,2.32617437,1995.7,1994.4,0.47896808]
[1770995052111,1.256,1995.7,1994.4,0.47896808]
[1770995052611,2.50873012,1995.7,1994.6,0.47896808]
[1770995053113,0.00353886,1996.0,1995.0,0.47896808]
[1770995053413,0.00353886,1996.0,1994.9,20.065889]
[1770995053414,1.25604959,1996.0,1994.9,1.993]
[1770995053612,1.2560518,1996.0,1994.9,1.993]
[1770995053809,1.2560518,1996.0,1994.5,1.73241505]
[1770995053810,1.07020745,1995.9,1994.5,1.73241505]
[1770995054015,2.5100518,1996.0,1994.5,1.73241505]
[1770995054315,1.07024327,1995.9,1994.6,0.47896808]
[1770995054518,1.07024327,1995.8,1994.6,0.47896808]
[1770995054717,2.5100518,1996.0,1994.7,1.2533213]
[1770995054888,1.07004326,1995.9,1994.8,0.47896808]
[1770995055084,2.5100518,1996.0,1994.8,0.47896808]
[1770995055281,1.06982862,1995.9,1994.8,0.47896808]
[1770995055485,2.5100518,1996.0,1994.8,0.47896808]
[1770995055686,1.0699049,1995.9,1994.8,0.47896808]
[1770995055916,1.06996261,1995.8,1994.8,0.47896808]
[1770995056123,2.5100518,1996.0,1994.4,1.994]
[1770995056124,1.06998911,1995.7,1994.4,1.994]
[1770995056340,0.1024,1995.5,1994.0,1.25525025]
[1770995056501,0.1024,1995.3,1994.0,0.00153886]
[1770995056685,1.25313283,1995.0,1994.0,0.00153886]
[1770995056886,1.07048104,1994.9,1994.0,0.00153886]
[1770995057083,1.07056058,1994.8,1994.0,0.00153886]